fUST/lending_fUST_20250918
["ID","MTS","AMOUNT","RATE_DAILY","PERIOD"]
[386064168,1758207055447,-1500.0,0.00026568,2]
[386064169,1758207055457,-1500.0,0.00026568,2]
[386064170,1758207055467,-646.0,0.00026632,3]
[386064171,1758207055476,-160.0,0.00026635,4]
[386064172,1758207055486,-480.0,0.00026692,3]
[386064173,1758207055495,-974.04,0.00026692,3]
[386064174,1758207055506,-578.17,0.00026692,3]
[386064175,1758207055515,-480.0,0.00026694,3]
[386064176,1758207055525,-480.0,0.00026694,3]
[386064177,1758207055535,-480.0,0.00026694,3]
[386064178,1758207055545,-480.0,0.00026694,3]
[386064179,1758207055554,-480.0,0.00026694,3]
[386064180,1758207055564,-480.0,0.00026696,3]
[386064181,1758207055573,-480.0,0.00026696,3]
[386064182,1758207055582,-1994.86,0.00026696,3]
[386064183,1758207055592,-947.29,0.00026696,3]
[386064184,1758207055602,-2621.42,0.00026696,3]
[386064185,1758207055612,-480.0,0.00026696,3]
[386064186,1758207055621,-210.46,0.00026696,3]
[386064187,1758207055631,-487.28,0.00026696,3]
[386064188,1758207055641,-810.4,0.00026697,3]
[386064189,1758207055651,-5215.31,0.00026697,3]
[386064190,1758207055661,-554.4,0.00026697,3]
[386064191,1758207055671,-480.0,0.00026697,3]
[386064192,1758207055681,-480.0,0.00026723,3]
[386064193,1758207055691,-480.0,0.00026723,3]
[386064194,1758207055700,-480.0,0.00026723,3]
[386064195,1758207055710,-480.0,0.00026723,3]
[386064196,1758207055719,-502.8916786,0.00026761,10]
[386064197,1758207055729,-609.36641102,0.00026808,2]
[386064198,1758207055739,-300.0,0.00026849,5]
[386064199,1758207055748,-660.0,0.00026877,2]
[386064200,1758207055759,-2603.43,0.000269,7]
[386064201,1758207055769,-417.15472785,0.000269,7]
[386064202,1758207055779,-1500.0,0.00026904,2]
[386064203,1758207055789,-646.0,0.00026906,3]
[386064204,1758207055799,-587.0,0.00026942,2]
[386064205,1758207055809,-281.79554037,0.00026966,3]
[386064206,1758207055818,-974.04,0.00026966,3]
[386064207,1758207055828,-578.17,0.00026966,3]
[386064208,1758207055838,-242.94,0.00026968,3]
[386064209,1758207055847,-538.39619398,0.00026968,3]
[386064210,1758207055856,-480.0,0.00026968,3]
[386064211,1758207055866,-480.0,0.00026968,3]
[386064212,1758207055877,-314.97,0.00026968,3]
[386064213,1758207055887,-299.13,0.0002697,3]
[386064214,1758207055897,-480.0,0.0002697,3]
[386064215,1758207055907,-1994.86,0.0002697,3]
[386064216,1758207055918,-947.29,0.0002697,3]
[386064217,1758207055928,-2621.42,0.0002697,3]
[386064218,1758207055938,-414.69895068,0.0002697,3]
[386064219,1758207055948,-487.28,0.0002697,3]
[386064220,1758207055958,-810.4,0.00026971,3]
[386064221,1758207055968,-5215.31,0.00026971,3]
[386064222,1758207055977,-554.4,0.00026971,3]
[386064223,1758207055987,-480.0,0.00026971,3]
[386064224,1758207055997,-150.0,0.00026973,2]
[386064225,1758207056007,-480.0,0.00026997,3]
[386064226,1758207056016,-480.0,0.00026997,3]
[386064227,1758207056027,-480.0,0.00026997,3]
[386064228,1758207056036,-480.0,0.00026997,3]
[386064229,1758207056049,-847.27161332,0.00027,2]
[386064230,1758207056059,-101310.14317617,0.00027,12]
[386064231,1758207056068,-658123.4605,0.00027,6]
[386064232,1758207056078,-11234.0069,0.00027,5]
[386064233,1758207056087,-100000.0,0.00027,22]
[386064234,1758207056098,-158.766532,0.00027,14]
[386064235,1758207056107,-977.0,0.00027014,2]
[386064236,1758207056117,-410.0,0.00027014,2]
[386064237,1758207056130,-634.0,0.00027014,2]
[386064238,1758207056140,-2157.0,0.00027014,2]
[386064239,1758207056150,-150.0,0.00027014,2]
[386064240,1758207056159,-300.0,0.00027021,2]
[386064241,1758207056168,-2500.0,0.00027064,2]
[386064242,1758207056178,-2500.0,0.00027064,2]
[386064243,1758207056188,-2000.0,0.00027116,2]
[386064244,1758207056198,-863.11128932,0.00027116,2]
[386064245,1758207056207,-646.0,0.0002718,3]
[386064246,1758207056217,-454.0,0.00027193,2]
[386064247,1758207056227,-974.04,0.0002724,3]
[386064248,1758207056237,-578.17,0.0002724,3]
[386064249,1758207056247,-480.0,0.00027242,3]
[386064250,1758207056257,-480.0,0.00027242,3]
[386064251,1758207056267,-480.0,0.00027244,3]
[386064252,1758207056276,-1994.86,0.00027244,3]
[386064253,1758207056286,-947.29,0.00027244,3]
[386064254,1758207056295,-2621.42,0.00027244,3]
[386064255,1758207056305,-487.28,0.00027244,3]
[386064256,1758207056315,-810.4,0.00027245,3]
[386064257,1758207056325,-5152.95573111,0.00027245,3]
[386064258,1758207056402,-166.0,0.00022828,3]
[386064259,1758207056412,-303.63281683,0.00023406,2]
[386064260,1758207056421,-62.35426889,0.00027245,3]
[386064261,1758207056431,-554.4,0.00027245,3]
[386064262,1758207056441,-145.74798857,0.00027245,3]
[386064263,1758207056456,-1054.1,0.00024778,3]
[386064264,1758207056467,-334.25201143,0.00027245,3]
[386064265,1758207056476,-480.0,0.00027271,3]
[386064266,1758207056486,-480.0,0.00027271,3]
[386064267,1758207056495,-245.61129678,0.00027271,3]
[386064268,1758207056505,-480.0,0.00027271,3]
[386064269,1758207056514,-1425.895851,0.00027394,7]
[386064270,1758207056524,-200.0,0.00027397,2]
[386064271,1758207056533,-251.63283324,0.00027397,2]
[386064272,1758207056542,-760.0,0.00027425,2]
[386064273,1758207056552,-646.0,0.00027454,3]
[386064274,1758207056561,-974.04,0.00027514,3]
[386064275,1758207056570,-578.17,0.00027514,3]
[386064276,1758207056580,-480.0,0.00027516,3]
[386064277,1758207056589,-288.61,0.00027516,3]
[386064278,1758207056598,-480.0,0.00027518,3]
[386064279,1758207056608,-1994.86,0.00027518,3]
[386064280,1758207056618,-947.29,0.00027518,3]
[386064281,1758207056627,-2621.42,0.00027518,3]
[386064282,1758207056709,-487.28,0.00027518,3]
[386064283,1758207056722,-810.4,0.00027519,3]
[386064284,1758207056732,-5215.31,0.00027519,3]
[386064285,1758207056742,-554.4,0.00027519,3]
[386064286,1758207056752,-480.0,0.00027519,3]
[386064287,1758207056762,-349.12491427,0.00027521,5]
[386064288,1758207056772,-480.0,0.00027545,3]
[386064289,1758207056782,-480.0,0.00027545,3]
[386064290,1758207056792,-480.0,0.00027545,3]
[386064291,1758207056801,-160.0,0.00027558,5]
[386064292,1758207056812,-509.43732988,0.00027568,5]
[386064293,1758207056822,-1789.83604946,0.00027612,5]
[386064294,1758207056832,-3000.0,0.00027612,5]
[386064295,1758207056841,-153.55,0.00027614,15]
[386064296,1758207056851,-2004.64293593,0.00027664,5]
[386064297,1758207056864,-495.35706407,0.00027664,5]
[386064298,1758207056874,-153.55,0.00027714,15]
[386064299,1758207056885,-646.0,0.00027728,3]
[386064300,1758207056896,-974.04,0.00027788,3]
[386064301,1758207056907,-578.17,0.00027788,3]
[386064302,1758207056916,-480.0,0.0002779,3]
[386064303,1758207056926,-480.0,0.00027792,3]
[386064304,1758207056936,-1994.86,0.00027792,3]
[386064305,1758207056946,-947.29,0.00027792,3]
[386064306,1758207056955,-2621.42,0.00027792,3]
[386064307,1758207056966,-487.28,0.00027792,3]
[386064308,1758207056976,-810.4,0.00027793,3]
[386064309,1758207056986,-5215.31,0.00027793,3]
[386064310,1758207056995,-554.4,0.00027793,3]
[386064311,1758207057006,-480.0,0.00027793,3]
[386064312,1758207057016,-5539.98847209,0.000278,2]
[386064313,1758207057355,-480.0,0.00022856,3]
[386064314,1758207057365,-480.0,0.00022856,3]
[386064315,1758207057376,-480.0,0.00022856,3]
[386064316,1758207057385,-480.0,0.00022858,3]
[386064317,1758207057395,-480.0,0.00022858,3]
[386064318,1758207057404,-480.0,0.00022858,3]
[386064319,1758207057413,-473.86212997,0.00022858,3]
[386064320,1758207057423,-500.0,0.00022861,3]
[386064321,1758207057433,-480.0,0.00022861,3]
[386064322,1758207057442,-480.0,0.00022861,3]
[386064323,1758207057453,-480.0,0.00022861,3]
[386064324,1758207057465,-500.0,0.00022862,3]
[386064325,1758207057475,-500.0,0.00022864,3]
[386064326,1758207057485,-500.0,0.00022864,3]
[386064327,1758207057494,-152.71294716,0.00022864,3]
[386064328,1758207057504,-480.0,0.0002313,3]
[386064329,1758207057513,-480.0,0.0002313,3]
[386064330,1758207057523,-490.23,0.0002313,3]
[386064331,1758207057532,-480.0,0.00023132,3]
[386064332,1758207057542,-153.62,0.00023132,3]
[386064333,1758207057551,-290.94439098,0.00023132,3]
[386064334,1758207057561,-151.0,0.00023135,7]
[386064335,1758207057570,-480.0,0.00023135,3]
[386064336,1758207057580,-480.0,0.00023406,3]
[386064337,1758207057589,-480.0,0.00023409,3]
[386064338,1758207057599,-517.62433907,0.0002368,3]
[386064339,1758207057609,-338.00619282,0.00023683,3]
[386064340,1758207057621,-141.99380718,0.00023683,3]
[386064341,1758207057631,-480.0,0.00023956,3]
[386064342,1758207057641,-1054.1,0.00025052,3]
[386064343,1758207057651,-1054.1,0.00025326,3]
[386064344,1758207057661,-1054.1,0.000256,3]
[386064345,1758207057671,-812.70619278,0.00025874,3]
[386064346,1758207057683,-241.39380722,0.00025874,3]
[386064347,1758207057693,-1054.1,0.00026148,3]
[386064348,1758207057703,-1054.1,0.00026422,3]
[386064349,1758207057713,-123.54300828,0.00026696,3]
[386064350,1758207057725,-930.55699172,0.00026696,3]
[386064351,1758207057734,-1054.1,0.0002697,3]
[386064352,1758207057744,-1054.1,0.00027244,3]
[386064353,1758207057754,-769.54743413,0.00027518,3]
[386064354,1758207057765,-284.55256587,0.00027518,3]
[386064355,1758207057775,-1054.1,0.00027792,3]
[386064356,1758207057784,-5715.16495538,0.000278,2]
[386064357,1758207057800,-480.0,0.0002423,3]
[386064358,1758207057810,-142014.58295741,0.000278,2]
[386064359,1758207057819,-153.55,0.00027814,15]
[386064360,1758207057829,-480.0,0.00027819,3]
[386064361,1758207057839,-401.60113274,0.00027819,3]
[386064362,1758207057848,-480.0,0.00027819,3]
[386064363,1758207057858,-324.02920447,0.000279,2]
[386064364,1758207057867,-324.02920441,0.000279,2]
[386064365,1758207057877,-324.02920441,0.000279,2]
[386064366,1758207057887,-324.02920441,0.000279,2]
[386064367,1758207057897,-324.02920441,0.000279,2]
[386064368,1758207057907,-324.02920441,0.000279,2]
[386064369,1758207057916,-153.55,0.00027914,15]
[386064370,1758207057925,-720.0,0.00027937,20]
[386064371,1758207057935,-860.0,0.00027973,2]
[386064372,1758207057945,-150.0,0.00028,10]
[386064373,1758207057954,-228.39775,0.00028,120]
[386064374,1758207057964,-1500.0,0.00028,7]
[386064375,1758207057973,-646.0,0.00028002,3]
[386064376,1758207057983,-153.55,0.00028014,15]
[386064377,1758207057993,-974.04,0.00028062,3]
[386064378,1758207058002,-578.17,0.00028062,3]
[386064379,1758207058012,-480.0,0.00028064,3]
[386064380,1758207058022,-480.0,0.00028066,3]
[386064381,1758207058032,-1994.86,0.00028066,3]
[386064382,1758207058042,-947.29,0.00028066,3]
[386064383,1758207058055,-2621.42,0.00028066,3]
[386064384,1758207058064,-487.28,0.00028066,3]
[386064385,1758207058074,-1054.1,0.00028066,3]
[386064386,1758207058084,-810.4,0.00028067,3]
[386064387,1758207058095,-5215.31,0.00028067,3]
[386064388,1758207058104,-554.4,0.00028067,3]
[386064389,1758207058114,-564.33,0.00028067,3]
[386064390,1758207058125,-480.0,0.00028093,3]
[386064391,1758207058135,-480.0,0.00028093,3]
[386064392,1758207058144,-153.55,0.00028114,15]
[386064393,1758207058154,-3500.0,0.0002816,5]
[386064394,1758207058231,-2603.43,0.000282,7]
[386064395,1758207058241,-2509.09059891,0.00028212,5]
[386064396,1758207058251,-153.55,0.00028214,15]
[386064397,1758207058260,-7673.4117661,0.00028245,2]
[386064398,1758207058269,-646.0,0.00028276,3]
[386064399,1758207058279,-309.14,0.00028289,30]
[386064400,1758207058289,-153.55,0.00028314,15]
[386064401,1758207058298,-974.04,0.00028336,3]
[386064402,1758207058307,-578.17,0.00028336,3]
[386064403,1758207058317,-220.45357633,0.00028338,3]
[386064404,1758207058327,-480.0,0.0002834,3]
[386064405,1758207058336,-1994.86,0.0002834,3]
[386064406,1758207058346,-947.29,0.0002834,3]
[386064407,1758207058355,-2621.42,0.0002834,3]
[386064408,1758207058364,-487.28,0.0002834,3]
[386064409,1758207058373,-1054.1,0.0002834,3]
[386064410,1758207058383,-810.4,0.00028341,3]
[386064411,1758207058393,-5215.31,0.00028341,3]
[386064412,1758207058403,-554.4,0.00028341,3]
[386064413,1758207058412,-299.14,0.00028367,3]
[386064414,1758207058422,-516.50597717,0.00028367,3]
[386064415,1758207058431,-153.55,0.00028414,15]
[386064416,1758207058440,-160.0,0.00028481,6]
[386064417,1758207058450,-324.02920441,0.00028495,2]
[386064418,1758207058459,-153.55,0.00028514,15]
[386064419,1758207058468,-960.0,0.00028521,2]
[386064420,1758207058478,-646.0,0.00028549,3]
[386064421,1758207058487,-500.0,0.00028566,2]
[386064422,1758207058496,-500.0,0.00028575,2]
[386064423,1758207058506,-844.69310696,0.00028576,2]
[386064424,1758207058515,-500.0,0.00028586,2]
[386064425,1758207058525,-974.04,0.0002861,3]
[386064426,1758207058534,-578.17,0.0002861,3]
[386064427,1758207058543,-153.55,0.00028614,15]
[386064428,1758207058552,-480.0,0.00028614,3]
[386064429,1758207058561,-1994.86,0.00028614,3]
[386064430,1758207058571,-947.29,0.00028614,3]
[386064431,1758207058580,-2621.42,0.00028614,3]
[386064432,1758207058589,-487.28,0.00028614,3]
[386064433,1758207058598,-1054.1,0.00028614,3]
[386064434,1758207058608,-810.4,0.00028615,3]
[386064435,1758207058617,-5215.31,0.00028615,3]
[386064436,1758207058627,-554.4,0.00028615,3]
[386064437,1758207058637,-1425.895851,0.00028643,10]
[386064438,1758207058647,-500.0,0.00028707,2]
[386064439,1758207058657,-4000.0,0.00028708,5]
[386064440,1758207058666,-153.55,0.00028714,15]
[386064441,1758207058675,-500.0,0.00028804,2]
[386064442,1758207058685,-153.55,0.00028814,15]
[386064443,1758207058694,-646.0,0.00028823,3]
[386064444,1758207058708,-974.04,0.00028884,3]
[386064445,1758207058717,-578.17,0.00028884,3]
[386064446,1758207058726,-453.89,0.00028888,3]
[386064447,1758207058735,-1994.86,0.00028888,3]
[386064448,1758207058744,-947.29,0.00028888,3]
[386064449,1758207058753,-2621.42,0.00028888,3]
[386064450,1758207058763,-487.28,0.00028888,3]
[386064451,1758207058772,-1054.1,0.00028888,3]
[386064452,1758207058782,-810.4,0.00028889,3]
[386064453,1758207058791,-5215.31,0.00028889,3]
[386064454,1758207058801,-554.4,0.00028889,3]
[386064455,1758207058810,-153.55,0.00028914,15]
[386064456,1758207058819,-1712.1695962,0.00028995,2]
[386064457,1758207058828,-39056.50583777,0.00029,20]
[386064458,1758207058837,-575464.6647,0.00029,20]
[386064459,1758207058846,-217.95274215,0.00029,30]
[386064460,1758207058855,-160.0,0.00029,30]
[386064461,1758207058864,-531.6443493,0.00029,30]
[386064462,1758207058873,-417.15472785,0.00029,30]
[386064463,1758207058883,-153.55,0.00029014,15]
[386064464,1758207058892,-500.0,0.00029029,2]
[386064465,1758207058901,-1060.0,0.00029069,2]
[386064466,1758207058911,-646.0,0.00029097,3]
[386064467,1758207058919,-324.02920441,0.00029109,2]
[386064468,1758207058928,-153.55,0.00029114,15]
[386064469,1758207058938,-974.13842556,0.00029158,3]
[386064470,1758207058946,-578.29,0.00029158,3]
[386064471,1758207058956,-1995.09041784,0.00029162,3]
[386064472,1758207058965,-947.33292561,0.00029162,3]
[386064473,1758207058974,-2621.53892847,0.00029162,3]
[386064474,1758207058983,-487.42059783,0.00029162,3]
[386064475,1758207058992,-1054.2896049,0.00029162,3]
[386064476,1758207059002,-810.55319127,0.00029163,3]
[386064477,1758207059011,-5215.53817263,0.00029163,3]
[386064478,1758207059020,-554.44,0.00029163,3]
[386064479,1758207059030,-153.55,0.00029214,15]
[386064480,1758207059039,-823.0,0.00029252,2]
[386064481,1758207059049,-616.34080567,0.00029256,5]
[386064482,1758207059059,-153.55,0.00029314,15]
[386064483,1758207059068,-500.0,0.00029329,2]
[386064484,1758207059078,-156.77721,0.0002934,5]
[386064485,1758207059087,-646.0,0.00029371,3]
[386064486,1758207059097,-160.0,0.00029404,7]
[386064487,1758207059106,-153.55,0.00029414,15]
[386064488,1758207059116,-500.0,0.00029437,2]
[386064489,1758207059126,-2603.43,0.000295,7]
[386064490,1758207059135,-250.0,0.00029511,2]
[386064491,1758207059145,-153.55,0.00029514,15]
[386064492,1758207059154,-500.0,0.00029571,2]
[386064493,1758207059164,-156.77721,0.00029576,2]
[386064494,1758207059174,-450.0,0.00029589,8]
[386064495,1758207059183,-153.55,0.00029614,15]
[386064496,1758207059193,-1160.0,0.00029617,2]
[386064497,1758207059202,-1500.0,0.00029644,7]
[386064498,1758207059211,-656.0,0.00029645,3]
[386064499,1758207059221,-153.55,0.00029714,15]
[386064500,1758207059230,-200.0,0.0002972,25]
[386064501,1758207059239,-324.02920441,0.00029723,2]
[386064502,1758207059248,-151.0,0.00029743,7]
[386064503,1758207059258,-10508.838679,0.00029766,2]
[386064504,1758207059267,-823.17349534,0.00029772,2]
[386064505,1758207059276,-153.55,0.00029814,15]
[386064506,1758207059285,-1425.895851,0.00029892,12]
[386064507,1758207059294,-153.75517226,0.00029914,15]
[386064508,1758207059304,-500.0,0.00029989,2]
[386064509,1758207059313,-600.0,0.0003,50]
[386064510,1758207059322,-1000.0,0.0003,120]
[386064511,1758207059332,-404.59833677,0.0003,10]
[386064512,1758207059341,-1572.37644312,0.0003,10]
[386064513,1758207059351,-4000.0,0.0003,4]
[386064514,1758207059361,-919.45037694,0.00030004,7]
[386064515,1758207059371,-1260.0,0.00030165,2]
[386064516,1758207059383,-2000.0,0.000302,2]
[386064517,1758207059393,-2868.0431271,0.00030227,2]
[386064518,1758207059403,-181.35,0.0003032,8]
[386064519,1758207059412,-160.0,0.00030327,8]
[386064520,1758207059422,-160.0,0.00030327,5]
[386064521,1758207059431,-324.02920441,0.00030337,2]
[386064522,1758207059440,-184.43422274,0.0003034,2]
[386064523,1758207059450,-151.0,0.00030345,30]
[386064524,1758207059459,-500.0,0.00030345,5]
[386064525,1758207059469,-201.59067103,0.00030376,2]
[386064526,1758207059479,-200.0,0.000304,120]
[386064527,1758207059489,-806.95523721,0.00030422,30]
[386064528,1758207059498,-317.31,0.00030442,50]
[386064529,1758207059508,-156.77721,0.00030447,50]
[386064530,1758207059517,-190911.18021866,0.0003045,20]
[386064531,1758207060814,268.93125922,0.000199,2]
[386064532,1758207060848,268.93125899,0.00021149,2]
[386064533,1758207060881,268.93125899,0.00022398,2]
[386064534,1758207069002,-300.0,0.00022855,2]
[386064535,1758207069033,-500.0,0.00022856,2]
[386064536,1758207069067,-500.0,0.00022856,2]
[386064537,1758207069097,-500.0,0.00022856,2]
[386064538,1758207069128,-500.0,0.00022856,2]
[386064539,1758207069164,-500.0,0.00022856,2]
[386064540,1758207069193,-615.92598224,0.00022856,2]
[386064541,1758207069225,-500.0,0.00022856,2]
[386064542,1758207069273,-500.0,0.00022856,2]
[386064543,1758207069307,-500.0,0.00022856,2]
[386064544,1758207069494,-500.0,0.00022856,2]
[386064545,1758207069527,-500.0,0.00022856,2]
[386064546,1758207069560,-500.0,0.00022856,2]
[386064547,1758207069592,-500.0,0.00022856,2]
[386064548,1758207069624,-500.0,0.00022856,2]
[386064549,1758207069659,-500.0,0.00022856,2]
[386064550,1758207069693,-500.0,0.00022856,2]
[386064551,1758207069726,-500.0,0.00022856,2]
[386064552,1758207069758,-500.0,0.00022856,2]
[386064553,1758207069790,-500.0,0.00022856,2]
[386064554,1758207069895,-500.0,0.00022856,2]
[386064555,1758207069930,-500.0,0.00022856,2]
[386064556,1758207070053,-500.0,0.00022856,2]
[386064557,1758207070090,-500.0,0.00022856,2]
[386064558,1758207070124,-500.0,0.00022856,2]
[386064559,1758207070157,-500.0,0.00022856,2]
[386064560,1758207070190,-500.0,0.00022856,2]
[386064561,1758207070222,-500.0,0.00022856,2]
[386064562,1758207070254,-500.0,0.00022856,2]
[386064563,1758207070286,-500.0,0.00022856,2]
[386064564,1758207076982,-500.0,0.00022856,2]
[386064565,1758207077014,-500.0,0.00022856,2]
[386064566,1758207077046,-500.0,0.00022856,2]
[386064567,1758207077081,-500.0,0.00022856,2]
[386064568,1758207077112,-500.0,0.00022856,2]
[386064569,1758207077214,-500.0,0.00022856,2]
[386064570,1758207077246,-500.0,0.00022856,2]
[386064571,1758207077278,-500.0,0.00022856,2]
[386064572,1758207077311,-620.8368598,0.00022856,2]
[386064573,1758207077341,-215.20341949,0.00022856,2]
[386064574,1758207077428,-327.92944142,0.00022856,2]
[386064575,1758207077460,-500.0,0.00022856,2]
[386064576,1758207077492,-500.0,0.00022856,2]
[386064577,1758207077523,-500.0,0.00022856,2]
[386064578,1758207077555,-500.0,0.00022856,2]
[386064579,1758207077587,-500.0,0.00022856,2]
[386064580,1758207077619,-500.0,0.00022856,2]
[386064581,1758207077652,-500.0,0.00022856,2]
[386064582,1758207077686,-500.0,0.00022856,2]
[386064583,1758207077720,-525.5018612,0.00022856,2]
[386064584,1758207077836,-500.0,0.00022856,2]
[386064585,1758207077869,-500.0,0.00022856,2]
[386064586,1758207077899,-401.97994988,0.00022856,2]
[386064587,1758207077929,-486.64863469,0.00022856,3]
[386064588,1758207077960,-480.0,0.00022856,3]
[386064589,1758207077995,-480.0,0.00022856,3]
[386064590,1758207078028,-480.0,0.00022856,3]
[386064591,1758207078058,-158.40613644,0.00022856,3]
[386064592,1758207078090,-165.49792862,0.00022856,3]
[386064593,1758207078124,-480.0,0.00022856,3]
[386064594,1758207078158,-480.0,0.00022856,3]
[386064595,1758207078190,-225.43883277,0.00022857,2]
[386064596,1758207078322,-480.0,0.00022858,3]
[386064597,1758207078353,-480.0,0.00022858,3]
[386064598,1758207078385,-480.0,0.00022858,3]
[386064599,1758207078486,-480.0,0.00022858,3]
[386064600,1758207078520,-480.0,0.00022858,3]
[386064601,1758207078551,-480.0,0.00022858,3]
[386064602,1758207078582,-480.0,0.00022858,3]
[386064603,1758207078612,-480.0,0.00022861,3]
[386064604,1758207078645,-480.0,0.00022861,3]
[386064605,1758207078675,-480.0,0.00022861,3]
[386064606,1758207079409,-49.50586797,0.00022861,3]
[386064607,1758207079423,-400.01,0.00022861,3]
[386064609,1758207086972,-500.0,0.00022856,2]
[386064611,1758207087003,-480.0,0.00022858,3]
[386064612,1758207087091,-30.48413203,0.00022861,3]
[386064613,1758207087133,-480.0,0.00022861,3]
[386064614,1758207087167,-480.0,0.00022861,3]
[386064615,1758207087198,-480.0,0.00022861,3]
[386064616,1758207087228,-480.0,0.00022861,3]
[386064617,1758207087260,-480.0,0.00022861,3]
[386064618,1758207087291,-606.31,0.00022861,3]
[386064619,1758207087321,-500.0,0.00022973,2]
[386064620,1758207087351,-480.0,0.00022973,2]
[386064621,1758207087547,-504.42126826,0.00022973,2]
[386064622,1758207087576,-501.01075172,0.00022973,2]
[386064623,1758207087606,-182.3758288,0.00022973,2]
[386064624,1758207087638,-480.0,0.0002313,3]
[386064625,1758207087671,-480.0,0.0002313,3]
[386064626,1758207087703,-480.0,0.0002313,3]
[386064627,1758207087733,-480.0,0.00023132,3]
[386064628,1758207087764,-480.0,0.00023132,3]
[386064629,1758207087795,-480.0,0.00023132,3]
[386064630,1758207087824,-480.0,0.00023132,3]
[386064631,1758207087854,-424.39430244,0.00023132,3]
[386064632,1758207088300,-55.60569756,0.00023132,3]
[386064633,1758207088310,-6.42173594,0.00023135,7]
[386064634,1758207096956,-480.0,0.00022858,3]
[386064635,1758207096990,-480.0,0.00022858,3]
[386064636,1758207097024,-150.99,0.00022858,3]
[386064637,1758207097057,-480.0,0.00022861,3]
[386064638,1758207097091,-480.0,0.00022861,3]
[386064639,1758207097123,-480.0,0.00022861,3]
[386064640,1758207097155,-480.0,0.00022861,3]
[386064641,1758207097188,-160.0,0.00023,3]
[386064642,1758207097219,-486.9612711,0.00023132,3]
[386064643,1758207097249,-145.34418006,0.00023135,7]
[386064644,1758207097280,-480.0,0.00023135,3]
[386064645,1758207097311,-480.0,0.00023135,3]
[386064646,1758207097543,-433.41909768,0.00023135,3]
[386064647,1758207146036,370000.0,0.00022758,2]
[386064648,1758207190172,180.22,0.00022758,2]
[386064649,1758207242297,1261.40047498,0.000199,2]
[386064650,1758207242430,1261.40047497,0.00021149,2]
[386064651,1758207242518,1261.40047497,0.00022398,2]
[386064652,1758207265123,160.2,0.00022758,2]
[386064653,1758207306231,2006.34199881,0.00022758,2]
[386064654,1758207323913,235.0,0.00022801,2]
[386064656,1758207424831,1182.79028926,0.000199,2]
[386064657,1758207424923,1182.79028917,0.00021149,2]
[386064658,1758207425055,1182.79028917,0.00022398,2]
[386064659,1758207440849,567.64148999,0.00022755,2]
[386064660,1758207478221,8054.00483735,0.00028,30]
[386064661,1758207615224,1112.04112204,0.000199,2]
[386064662,1758207615344,1112.04112195,0.00021149,2]
[386064663,1758207615470,1112.04112195,0.00022398,2]
[386064664,1758207646491,1605.07359904,0.00022756,2]
[386064665,1758207664548,228.22367412,0.00022455,5]
[386064666,1758207705418,943.0,0.00030444,120]
[386064667,1758207721127,496.68630375,0.00022754,2]
[386064668,1758207765237,335.089242,0.00021854,2]
[386064669,1758207791337,6513.96358354,0.00022758,2]
[386064670,1758207797377,3398.0443882,0.00021854,2]